bitfinex/quotes_SOLUSD_20241127
["timestamp","ask_amount","ask_price","bid_price","bid_amount"]
[1732676933101,13.24035092,233.46,233.39,13.24035092]
[1732676933394,24.9668,233.47,233.34,20.0]
[1732676933595,24.9668,233.47,233.41,13.24035092]
[1732676934203,13.24035092,233.49,233.42,13.24035092]
[1732676934390,14.09685092,233.5,233.43,13.24035092]
[1732676934575,20.0,233.47,233.43,13.24035092]
[1732676934770,20.0,233.47,233.42,13.24035092]
[1732676934976,20.0,233.47,233.4,13.24035092]
[1732676935186,20.0,233.5,233.42,13.24035092]
[1732676935504,13.24035092,233.49,233.42,13.24035092]
[1732676935797,13.24035092,233.48,233.4,13.24035092]
[1732676935995,13.24035092,233.48,233.41,13.24035092]
[1732676936401,14.09695092,233.48,233.41,13.24035092]
[1732676942608,13.24035092,233.46,233.37,17.52525092]
[1732676942908,13.24035092,233.46,233.37,4.2849]
[1732676943108,13.24035092,233.46,233.37,17.52525092]
[1732676943600,14.09705092,233.44,233.37,13.24035092]
[1732676943801,13.24035092,233.46,233.37,13.24035092]
[1732676944105,13.24035092,233.46,233.37,17.52535092]
[1732676945176,14.09705092,233.46,233.37,17.52535092]
[1732676945381,13.24035092,233.42,233.35,13.24035092]
[1732676946875,0.8568,233.43,233.35,17.52565092]
[1732676947084,20.0,233.46,233.38,13.24035092]
[1732676947983,13.24035092,233.45,233.38,13.24035092]
[1732676948586,13.24035092,233.45,233.36,13.24035092]
[1732676948587,13.24035092,233.43,233.36,13.24035092]
[1732676950502,14.09715092,233.43,233.36,13.24035092]
[1732676950810,14.09715092,233.43,233.35,13.24035092]
[1732676953706,13.24035092,233.41,233.31,4.2859]
[1732676953899,13.24035092,233.41,233.33,13.24035092]
[1732676954306,8.47484762,233.4,233.32,8.47484762]
[1732676955109,8.47484762,233.4,233.33,8.47484762]
[1732676955685,9.33174762,233.4,233.33,8.47484762]
[1732676955902,8.47484762,233.38,233.31,8.47484762]
[1732676956298,8.47484762,233.38,233.29,25.1996]
[1732676956618,8.47484762,233.35,233.26,4.287]
[1732676956808,9.33184762,233.35,233.27,8.47484762]
[1732676957310,8.47484762,233.34,233.27,8.47484762]
[1732676958496,8.47484762,233.34,233.26,4.287]
[1732676958497,9.33194762,233.34,233.26,4.287]
[1732676958801,8.47484762,233.3,233.23,8.47484762]
[1732676959197,8.47484762,233.31,233.24,8.47484762]
[1732676959696,20.8571,233.34,233.25,8.47484762]
[1732676959901,20.8571,233.34,233.21,4.2879]
[1732676959902,8.47484762,233.31,233.21,4.2879]
[1732676960110,8.47484762,233.31,233.24,8.47484762]
[1732676961293,8.47484762,233.3,233.23,12.76224762]
[1732676962609,8.47484762,233.28,233.21,12.76264762]
[1732676963188,8.47484762,233.29,233.22,8.47484762]
[1732676963802,8.47484762,233.29,233.22,12.76244762]
[1732676964014,8.47484762,233.3,233.23,8.47484762]
[1732676964315,8.47484762,233.31,233.24,8.47484762]
[1732676964912,8.47484762,233.3,233.23,8.47484762]
[1732676965216,8.47484762,233.3,233.23,12.76234762]
[1732676965721,20.8571,233.34,233.25,8.47484762]
[1732676965913,8.47484762,233.33,233.25,8.47484762]
[1732676966324,8.47484762,233.32,233.25,8.47484762]
[1732676966695,8.47484762,233.31,233.23,4.2875]
[1732676966896,8.47484762,233.31,233.24,8.47484762]
[1732676967319,6.59343322,233.56,233.28,0.12549]
[1732676967614,0.8561,233.61,233.41,23.776884]
[1732676967824,8.47484762,233.52,233.44,8.47484762]
[1732676968120,8.47484762,233.5,233.42,8.47484762]
[1732676968319,8.47484762,233.48,233.37,20.0]
[1732676968523,8.47484762,233.46,233.37,8.47484762]
[1732676969201,6.59343322,233.68,233.45,8.47484762]
[1732676969400,7.44853322,233.88,233.69,20.0]
[1732676969628,0.8549,233.94,233.8,8.47484762]
[1732676969799,0.8549,233.94,233.82,8.47484762]
[1732676970002,8.47484762,233.91,233.75,20.0]
[1732676970317,8.47484762,233.89,233.72,9.1892]
[1732676970498,8.47484762,233.85,233.74,8.47484762]
[1732676970912,8.47484762,233.85,233.76,8.47484762]
[1732676971625,0.8551,233.87,233.76,8.47484762]
[1732676971829,8.47484762,233.86,233.76,8.47484762]
[1732676972005,8.47484762,233.89,233.8,8.47484762]
[1732676972202,8.47484762,233.89,233.73,20.0]
[1732676972414,13.19089836,233.87,233.76,13.19089836]
[1732676972618,13.19089836,233.85,233.76,13.19089836]
[1732676973301,20.0,233.82,233.76,13.19089836]
[1732676973708,20.0,233.8,233.74,13.19089836]
[1732676974225,23.776884,233.82,233.74,13.19089836]
[1732676974728,20.0,233.8,233.74,13.19089836]
[1732676976023,20.0,233.76,233.72,13.19089836]
[1732676976213,20.0,233.76,233.7,13.19089836]
[1732676977320,20.0,233.72,233.66,13.19089836]
[1732676977826,33.19089836,233.72,233.64,13.19089836]
[1732676978625,13.19089836,233.67,233.6,13.19089836]
[1732676979040,13.19089836,233.68,233.61,13.19089836]
[1732676979335,0.8559,233.67,233.61,13.19089836]
[1732676979538,13.19089836,233.69,233.62,13.19089836]
[1732676979912,13.19089836,233.7,233.62,13.19089836]
[1732676980235,20.0,233.67,233.62,13.19089836]
[1732676980810,20.0,233.67,233.55,4.2816]
[1732676981010,20.0,233.67,233.63,13.19089836]
[1732676981215,20.0,233.67,233.62,13.19089836]
[1732676981631,20.8559,233.67,233.61,13.19089836]
[1732676981838,0.8559,233.67,233.61,13.19089836]
[1732676982722,0.8559,233.67,233.6,13.19089836]
[1732676983318,0.8559,233.67,233.53,4.2821]
[1732676983319,20.0,233.65,233.59,13.19089836]
[1732676983519,20.0,233.65,233.5,33.3753]
[1732676983520,20.0,233.6,233.56,13.19089836]
[1732676983810,20.0,233.59,233.53,13.19089836]
[1732676984024,20.0,233.6,233.53,13.19089836]
[1732676984025,33.19089836,233.6,233.53,13.19089836]
[1732676984231,20.0,233.6,233.53,13.19089836]
[1732676984830,20.8561,233.6,233.53,13.19089836]
[1732676985032,13.19089836,233.59,233.48,4.2829]
[1732676985332,14.04699836,233.6,233.53,13.19089836]
[1732676986310,13.19089836,233.58,233.5,13.19089836]
[1732676987335,0.8562,233.57,233.52,13.19089836]
[1732676988336,5.0,233.71,233.56,13.19089836]
[1732676988337,0.8559,233.66,233.56,13.19089836]
[1732676988520,0.8559,233.66,233.6,13.19089836]
[1732676988720,14.04679836,233.66,233.59,13.19089836]
[1732676989028,13.19089836,233.62,233.47,20.0]
[1732676989216,0.8559,233.66,233.44,23.776884]
[1732676989413,2.9957,233.66,233.45,4.2835]
[1732676989821,20.0,233.64,233.45,4.2835]
[1732676990221,20.0,233.64,233.55,13.19089836]
[1732676990222,13.19089836,233.62,233.55,13.19089836]
[1732676990424,20.0,233.59,233.54,13.19089836]
[1732676990928,14.04679836,233.65,233.58,13.19089836]
[1732676991125,13.19089836,233.68,233.61,13.19089836]
[1732676991324,14.04669836,233.69,233.61,13.19089836]
[1732676991650,13.19089836,233.68,233.61,13.19089836]
[1732676991820,0.8558,233.69,233.63,13.19089836]
[1732676993025,20.0,233.67,233.63,13.19089836]
[1732676993455,0.8558,233.69,233.63,13.19089836]
[1732676994156,0.8558,233.69,233.64,13.19089836]
[1732676994536,0.8557,233.71,233.64,13.19089836]
[1732676995048,20.0,233.69,233.64,13.19089836]
[1732676995256,13.19089836,233.7,233.62,13.19089836]
[1732676996147,0.8558,233.69,233.62,13.19089836]
[1732676996326,20.8558,233.69,233.64,13.19089836]
[1732676997027,20.8558,233.69,233.52,23.89659836]
[1732676997028,20.0,233.67,233.62,13.19089836]
[1732676997224,20.0,233.67,233.6,13.19089836]
[1732676998152,20.8559,233.66,233.61,13.19089836]
[1732676998326,20.8559,233.66,233.62,13.19089836]
[1732676998854,0.8559,233.66,233.6,13.19089836]
[1732676999155,0.8559,233.66,233.59,13.19089836]
[1732676999156,20.0,233.64,233.59,13.19089836]
[1732676999632,20.0,233.64,233.6,13.19089836]
[1732676999827,20.0,233.64,233.58,13.19089836]
[1732677000152,20.0,233.64,233.59,13.19089836]
[1732677000655,20.0,233.64,233.48,16.34945442]
[1732677000656,20.0,233.64,233.57,13.19089836]
[1732677000951,20.0,233.64,233.58,13.19089836]
[1732677001333,20.0,233.64,233.57,13.19089836]
[1732677001538,20.0,233.64,233.58,13.19089836]
[1732677001826,20.0,233.63,233.6,13.19089836]
[1732677002147,20.0,233.63,233.61,13.19089836]
[1732677002356,20.0,233.65,233.6,13.19089836]
[1732677003049,2.1389,233.77,233.64,13.19089836]
[1732677003364,13.19089836,233.75,233.67,13.19089836]
[1732677003651,13.19089836,233.73,233.65,14.06502791]
[1732677003851,13.19089836,233.73,233.66,0.87409214]
[1732677004028,2.1389,233.77,233.67,13.19089836]
[1732677004228,13.19089836,233.75,233.67,13.19089836]
[1732677004437,0.8555,233.76,233.7,13.19089836]
[1732677004631,14.04639836,233.76,233.68,13.19089836]
[1732677004825,13.19089836,233.74,233.66,14.0649905]
[1732677005440,13.19089836,233.69,233.66,0.87409214]
[1732677005754,20.0,233.67,233.66,0.87409214]
[1732677006258,34.04679836,233.67,233.66,0.87409214]
[1732677006455,20.8559,233.67,233.66,0.87409214]
[1732677007267,14.04649836,233.74,233.66,14.0649905]
[1732677007431,0.8556,233.74,233.68,13.19089836]
[1732677007754,0.8556,233.74,233.69,13.19089836]
[1732677008146,13.19089836,233.77,233.69,13.19089836]
[1732677008458,0.8555,233.76,233.71,13.19089836]
[1732677009066,0.8555,233.78,233.72,13.19089836]
[1732677010168,14.04619836,233.83,233.76,13.19089836]
[1732677010971,0.8552,233.85,233.79,13.19089836]
[1732677011270,14.04599836,233.87,233.8,13.19089836]
[1732677011460,0.8551,233.89,233.83,13.19089836]
[1732677012477,0.8551,233.89,233.8,13.19089836]
[1732677012478,13.19089836,233.88,233.8,13.19089836]
[1732677012775,13.19089836,233.88,233.81,13.19089836]
[1732677012970,14.04599836,233.89,233.82,13.19089836]
[1732677013154,0.855,233.91,233.76,13.19089836]
[1732677013357,0.855,233.91,233.86,13.19089836]
[1732677013547,2.137,233.97,233.76,13.83230052]
[1732677013548,14.04569836,233.95,233.87,13.19089836]
[1732677013745,13.19089836,233.94,233.87,13.19089836]
[1732677013968,14.04569836,233.95,233.87,13.19089836]
[1732677014170,13.19089836,233.93,233.85,13.19089836]
[1732677014378,13.19089836,233.9,233.82,13.19089836]
[1732677014562,13.19089836,233.88,233.8,13.19089836]
[1732677014759,13.19089836,233.88,233.81,13.19089836]
[1732677015557,20.0,233.86,233.82,13.19089836]
[1732677016178,13.19089836,233.9,233.83,13.19089836]
[1732677016479,0.8551,233.89,233.83,13.19089836]
[1732677016868,0.8551,233.89,233.84,13.19089836]
[1732677017070,20.0,233.88,233.84,13.19089836]
[1732677017272,20.0,233.88,233.83,13.19089836]
[1732677017475,20.0,233.88,233.84,13.19089836]
[1732677019181,0.8551,233.89,233.84,13.19089836]
[1732677019384,20.8551,233.89,233.84,13.19089836]
[1732677020688,34.04599836,233.89,233.82,13.19089836]
[1732677020855,34.04599836,233.89,233.77,4.2777]
[1732677020856,20.8551,233.89,233.83,13.19089836]
[1732677021057,20.0,233.88,233.83,13.19089836]
[1732677022052,14.04569836,233.95,233.87,13.19089836]
[1732677022265,0.8548,233.95,233.88,13.19089836]
[1732677022758,13.19089836,233.94,233.87,13.19089836]
[1732677023374,0.8548,233.95,233.87,13.19089836]
[1732677023375,14.04569836,233.95,233.87,13.19089836]
[1732677023683,13.19089836,233.94,233.87,13.19089836]
[1732677023989,13.19089836,233.94,233.85,4.2762]
[1732677023990,14.04569836,233.95,233.88,13.19089836]
[1732677025484,6.6990956,234.02,233.93,13.19089836]
[1732677025485,0.8547,233.99,233.93,13.19089836]
[1732677025690,0.8547,233.99,233.94,13.19089836]
[1732677025863,13.69949396,234.02,233.94,13.19089836]
[1732677026062,13.69949396,234.02,233.88,13.19089836]
[1732677026063,13.69949396,234.02,233.95,13.19089836]
[1732677026397,0.5085956,234.02,233.97,13.19089836]
[1732677026684,1.3631956,234.02,233.96,13.19089836]
[1732677027626,34.04559836,234.0,233.92,13.19089836]
[1732677027766,13.19089836,233.98,233.9,13.19089836]
[1732677028093,13.19089836,233.97,233.9,13.19089836]
[1732677028463,13.19089836,233.98,233.9,13.19089836]
[1732677028879,13.19089836,233.98,233.91,13.19089836]
[1732677029083,0.8548,233.97,233.91,13.19089836]
[1732677029286,20.0,233.96,233.93,13.19089836]
[1732677029460,0.8547,233.99,233.93,13.19089836]
[1732677029668,20.0,233.98,233.93,13.19089836]
[1732677029989,0.8547,233.99,233.93,13.19089836]
[1732677030363,20.0,233.98,233.94,13.19089836]
[1732677030565,20.0,233.98,233.93,13.19089836]
[1732677032181,20.0,233.98,233.94,13.19089836]
[1732677032703,20.0,233.98,233.93,13.19089836]
[1732677033000,20.8547,233.98,233.93,13.19089836]
[1732677035397,0.8546,234.01,233.93,13.19089836]
[1732677035601,20.0,233.98,233.95,13.19089836]
[1732677035899,0.5085956,234.02,233.97,13.19089836]
[1732677036101,0.5085956,234.02,234.0,13.19089836]
[1732677036309,0.5085956,234.02,234.01,13.19089836]
[1732677038199,0.5085956,234.02,233.99,13.19089836]
[1732677038403,0.5085956,234.02,233.98,13.19089836]
[1732677038904,0.5085956,234.02,233.95,13.19089836]
[1732677038905,1.3631956,234.02,233.95,13.19089836]
[1732677039091,1.3631956,234.02,233.96,13.19089836]
[1732677039298,1.3631956,234.02,233.97,13.19089836]
[1732677040301,1.3631956,234.02,233.94,4.2745]
[1732677040609,23.776884,233.81,233.62,13.19089836]
[1732677040789,20.0,233.77,233.7,13.19089836]
[1732677041181,13.19089836,233.8,233.72,13.19089836]
[1732677041481,13.19089836,233.8,233.7,13.19089836]
[1732677042375,13.19089836,233.8,233.66,0.64163646]
[1732677042376,21.11085527,233.85,233.75,21.11085527]
[1732677042875,21.11085527,233.83,233.73,21.11085527]
[1732677043403,21.11085527,233.83,233.69,4.2791]
[1732677043404,21.11085527,233.81,233.71,21.11085527]
[1732677043702,21.11085527,233.79,233.71,21.11085527]
[1732677044580,21.11085527,233.81,233.71,21.11085527]
[1732677044904,21.11085527,233.81,233.73,21.11085527]
[1732677045200,21.11085527,233.85,233.74,0.64152269]
[1732677045404,21.11085527,233.85,233.77,21.11085527]
[1732677048806,21.11085527,233.83,233.75,21.11085527]
[1732677052605,21.11085527,233.88,233.8,21.11085527]
[1732677052798,3.18265792,233.87,233.82,21.11085527]
[1732677052980,3.18265792,233.86,233.84,21.11085527]
[1732677053183,8.2749107,233.91,233.84,21.11085527]
[1732677053411,3.18265792,233.91,233.84,21.11085527]
[1732677053913,21.11085527,233.92,233.84,21.11085527]
[1732677054104,3.18370503,233.91,233.84,21.11085527]
[1732677054688,10.20393463,233.91,233.84,21.11085527]
[1732677054890,3.18370503,233.9,233.84,21.11085527]
[1732677056021,3.18370503,233.89,233.84,21.11085527]
[1732677056311,5.09665289,233.91,233.84,21.11085527]
[1732677056498,8.28382367,233.91,233.84,21.11085527]
[1732677056886,21.11085527,233.9,233.82,21.11085527]
[1732677057087,3.18717078,233.89,233.82,21.11085527]
[1732677057699,21.11085527,233.86,233.78,21.11085527]
[1732677057904,21.11085527,233.84,233.76,21.11085527]
[1732677058097,21.11085527,233.86,233.78,21.11085527]
[1732677058312,3.18793215,233.85,233.78,21.11085527]
[1732677058510,3.18793215,233.85,233.8,21.11085527]
[1732677058714,5.10071248,233.87,233.8,21.11085527]
[1732677059013,21.11085527,233.88,233.8,21.11085527]
[1732677059014,3.18784353,233.86,233.8,21.11085527]
[1732677059313,3.18784353,233.86,233.78,21.11085527]
[1732677059314,3.18795238,233.85,233.78,21.11085527]
[1732677059991,22.39355527,233.88,233.8,21.11085527]
[1732677060191,3.18778535,233.87,233.8,21.11085527]
[1732677060386,21.11085527,233.84,233.74,10.6341]
[1732677060590,21.11085527,233.82,233.74,25.38895527]
[1732677061008,21.11085527,233.84,233.76,21.11085527]
[1732677061211,3.18810461,233.83,233.76,21.11085527]
[1732677061421,3.18810461,233.83,233.76,25.38865527]
[1732677061611,3.18810461,233.83,233.8,21.11085527]
[1732677061797,21.11085527,233.86,233.8,21.11085527]
[1732677062112,3.18767634,233.85,233.8,21.11085527]
[1732677062525,21.11085527,233.86,233.8,21.11085527]
[1732677062691,0.64107671,233.94,233.71,28.055684]
[1732677062692,21.11085527,233.84,233.71,28.055684]
[1732677062887,21.11085527,233.84,233.75,21.11085527]
[1732677063298,21.11085527,233.84,233.77,21.11085527]
[1732677063503,21.11085527,233.86,233.77,21.11085527]
[1732677063708,3.1874272,233.85,233.79,21.11085527]
[1732677064613,21.11085527,233.86,233.79,21.11085527]
[1732677064794,22.39355527,233.88,233.79,21.11085527]
[1732677064993,3.187081,233.87,233.79,21.11085527]
[1732677065214,21.11085527,233.86,233.79,21.11085527]
[1732677065402,21.11085527,233.86,233.77,25.38835527]
[1732677065600,1.2827,233.88,233.77,25.38835527]
[1732677065601,21.11085527,233.84,233.77,21.11085527]
[1732677065802,22.39375527,233.84,233.75,21.11085527]
[1732677065993,21.11085527,233.8,233.73,21.11085527]
[1732677066191,21.11085527,233.8,233.71,21.11085527]
[1732677066417,21.11085527,233.78,233.69,21.11085527]
[1732677066798,0.64107671,233.82,233.69,21.11085527]
[1732677066799,21.11085527,233.76,233.69,21.11085527]
[1732677067501,21.11085527,233.76,233.69,25.38995527]
[1732677068914,21.11085527,233.76,233.69,21.11085527]
[1732677069225,21.11085527,233.78,233.7,21.11085527]
[1732677069419,3.18654579,233.77,233.7,21.11085527]
[1732677069592,21.11085527,233.78,233.7,21.11085527]
[1732677069593,21.11085527,233.78,233.71,4.2788]
[1732677070405,21.96625527,233.8,233.72,21.11085527]
[1732677070716,0.8554,233.81,233.74,21.11085527]
[1732677071014,20.0,233.79,233.74,21.11085527]
[1732677071216,21.11085527,233.78,233.71,4.2787]
[1732677071425,21.75193198,233.78,233.7,21.11085527]
[1732677071918,21.11085527,233.78,233.7,21.11085527]
[1732677072125,20.0,233.79,233.72,21.11085527]
[1732677074294,21.11085527,233.78,233.7,21.11085527]
[1732677075315,21.11085527,233.76,233.66,21.11085527]
[1732677075514,21.11085527,233.74,233.66,21.11085527]
[1732677075831,21.11085527,233.68,233.6,21.11085527]
[1732677076735,21.11085527,233.7,233.62,21.11085527]
[1732677077402,0.8558,233.69,233.62,21.11085527]
[1732677078024,21.11085527,233.74,233.66,21.11085527]
[1732677078807,21.11085527,233.75,233.68,21.11085527]
[1732677078998,3.18287238,233.74,233.68,21.11085527]
[1732677079206,21.96635527,233.77,233.68,21.11085527]
[1732677079424,21.11085527,233.75,233.66,21.11085527]
[1732677079625,21.11085527,233.75,233.59,6.3601]
[1732677079626,21.11085527,233.73,233.64,21.11085527]
[1732677079928,0.64107671,233.72,233.64,21.11085527]
[1732677080157,21.11085527,233.71,233.64,21.11085527]
[1732677080428,0.64107671,233.72,233.61,4.2806]
[1732677080429,13.20772149,233.7,233.63,13.20772149]
[1732677081033,14.06342149,233.71,233.64,13.20772149]
[1732677081226,13.8487982,233.74,233.67,13.20772149]
[1732677081418,0.8556,233.75,233.68,13.20772149]
[1732677081601,0.8555,233.77,233.7,13.20772149]
[1732677081806,3.18275198,233.76,233.7,13.20772149]
[1732677082225,14.06312149,233.79,233.72,13.20772149]
[1732677082406,13.20772149,233.79,233.72,13.20772149]
[1732677082917,0.8554,233.8,233.72,13.20772149]
[1732677083428,3.18670686,233.79,233.72,17.48632149]
[1732677084435,4.04210686,233.8,233.72,17.48632149]
[1732677084616,3.18879606,233.79,233.72,17.48632149]
[1732677085935,3.19121671,233.78,233.72,13.20772149]
[1732677086309,13.20772149,233.82,233.75,13.20772149]
[1732677086515,13.20772149,233.86,233.78,13.20772149]
[1732677086710,0.64107671,233.88,233.8,13.20772149]
[1732677086711,8.29569182,233.85,233.8,13.20772149]
[1732677086947,8.29569182,233.87,233.8,13.20772149]
[1732677087106,3.19074808,233.86,233.8,13.20772149]
[1732677087312,3.19074808,233.85,233.83,13.20772149]
[1732677087513,8.29569182,233.89,233.83,13.20772149]
[1732677087731,3.1901276,233.88,233.82,13.20772149]
[1732677087941,3.1901276,233.87,233.8,13.20772149]
[1732677088241,3.1901276,233.86,233.8,13.20772149]
[1732677088446,24.2937964,233.86,233.77,21.1036688]
[1732677088613,21.1036688,233.83,233.76,21.1036688]
[1732677089117,21.1036688,233.84,233.76,21.1036688]
[1732677089338,3.190222,233.83,233.76,21.1036688]
[1732677089915,8.29504343,233.83,233.76,21.1036688]
[1732677090221,3.19051339,233.82,233.76,21.1036688]
[1732677090537,3.190465,233.81,233.76,21.1036688]
[1732677090733,3.190465,233.83,233.76,21.1036688]
[1732677090939,24.29414385,233.83,233.76,21.1036688]
[1732677091131,3.19047505,233.82,233.76,21.1036688]
[1732677093340,8.93694291,233.82,233.74,21.1036688]
[1732677093545,3.19047505,233.81,233.74,21.1036688]
[1732677093728,1.283,233.82,233.74,21.1036688]
[1732677094049,9.57941754,233.82,233.74,21.1036688]
[1732677094227,3.19092982,233.81,233.74,21.1036688]
[1732677095226,4.47392982,233.81,233.74,21.1036688]
[1732677095434,3.19092982,233.8,233.74,21.1036688]
[1732677096248,3.19092982,233.8,233.75,21.1036688]
[1732677096840,3.19092982,233.8,233.74,21.1036688]
[1732677097341,3.19092982,233.8,233.75,21.1036688]
[1732677099143,3.19092982,233.8,233.73,25.3820688]
[1732677099340,3.19092982,233.79,233.73,21.1036688]
[1732677099841,3.19092982,233.79,233.71,6.1873]
[1732677099842,24.29459862,233.79,233.71,21.1036688]
[1732677100051,3.19092982,233.78,233.71,21.1036688]
[1732677100222,8.29998658,233.78,233.71,21.1036688]
[1732677100417,3.19092982,233.77,233.71,21.1036688]
[1732677101045,3.19392807,233.76,233.71,21.1036688]
[1732677101240,22.3868688,233.78,233.71,21.1036688]
[1732677101452,3.19464152,233.77,233.71,21.1036688]
[1732677101750,3.19464152,233.76,233.71,21.1036688]
[1732677101931,22.3868688,233.78,233.71,21.1036688]
[1732677102132,2.95482827,233.77,233.71,21.1036688]
[1732677102348,5.1130683,233.77,233.71,21.1036688]
[1732677102741,27.5000371,233.77,233.69,21.1036688]
[1732677102923,21.1036688,233.76,233.69,21.1036688]
[1732677103123,1.2833,233.77,233.66,4.2797]
[1732677103124,21.1036688,233.73,233.66,21.1036688]
[1732677103637,21.1036688,233.72,233.65,21.1036688]
[1732677105533,22.3871688,233.73,233.65,21.1036688]
[1732677106158,21.1036688,233.72,233.64,21.1036688]
[1732677106633,22.3871688,233.73,233.65,21.1036688]
[1732677106834,22.3871688,233.73,233.61,4.2806]
[1732677106835,1.2835,233.73,233.66,21.1036688]
[1732677107032,6.39725229,233.73,233.66,21.1036688]
[1732677107525,5.11375229,233.73,233.66,21.1036688]
[1732677108134,5.11375229,233.73,233.68,21.1036688]
[1732677108330,5.11375229,233.73,233.69,21.1036688]
[1732677108534,1.2834,233.75,233.68,21.1036688]
[1732677109359,5.11407481,233.73,233.67,21.1036688]
[1732677109531,5.11407481,233.74,233.67,21.1036688]
[1732677110433,5.11407481,233.74,233.67,13.20261079]
[1732677110636,5.11407481,233.74,233.7,13.20261079]
[1732677110831,5.11407481,233.76,233.7,13.20261079]
[1732677111030,5.11407481,233.76,233.71,13.20261079]
[1732677111242,5.11407481,233.77,233.71,13.20261079]
[1732677112250,5.11517294,233.77,233.71,13.20261079]
[1732677112434,5.11526151,233.77,233.71,13.20261079]
[1732677113957,13.20261079,233.76,233.69,13.20261079]
[1732677114138,8.31268445,233.75,233.69,13.20261079]
[1732677114339,3.19742294,233.74,233.69,13.20261079]
[1732677114546,3.19742294,233.73,233.69,13.20261079]
[1732677114746,3.19742294,233.72,233.69,13.20261079]
[1732677115064,5.11526151,233.75,233.69,13.20261079]
[1732677115359,3.19736891,233.74,233.67,13.20261079]
[1732677115543,13.20261079,233.74,233.66,17.48231079]
[1732677115748,3.19742889,233.73,233.66,17.48231079]
[1732677116046,3.19742889,233.72,233.66,17.48231079]
[1732677116253,3.19742889,233.71,233.66,17.48231079]
[1732677116452,5.11590426,233.73,233.67,13.20261079]
[1732677116659,3.1973112,233.72,233.64,4.28]
[1732677116835,13.20261079,233.7,233.63,13.20261079]
[1732677117167,3.19772748,233.69,233.62,17.48291079]
[1732677117339,3.19772748,233.68,233.62,17.48291079]
[1732677117534,3.19772748,233.67,233.61,13.20261079]
[1732677117734,3.19772748,233.66,233.59,13.20261079]
[1732677117948,16.40033827,233.66,233.59,13.20261079]
[1732677118158,3.19772748,233.65,233.59,13.20261079]
[1732677118466,13.20261079,233.67,233.6,13.20261079]
[1732677118639,3.19664405,233.66,233.61,13.20261079]
[1732677118843,3.19664405,233.65,233.61,13.20261079]
[1732677119037,13.20261079,233.68,233.61,13.20261079]
[1732677119249,8.31127244,233.67,233.62,13.20261079]
[1732677119444,3.19664211,233.67,233.62,13.20261079]
[1732677119663,5.11463033,233.69,233.62,13.20261079]
[1732677119664,3.19664211,233.66,233.62,13.20261079]
[1732677119837,3.19664211,233.65,233.62,13.20261079]
[1732677120037,5.11463033,233.69,233.62,13.20261079]
[1732677120249,3.19573455,233.68,233.62,13.20261079]
[1732677120455,3.19573455,233.67,233.61,13.20261079]
[1732677120657,3.19573455,233.66,233.61,13.20261079]
[1732677120864,5.11463033,233.68,233.61,13.20261079]
[1732677121044,3.19543682,233.67,233.63,13.20261079]
[1732677121239,3.19543682,233.67,233.59,23.776884]
[1732677121442,3.19543682,233.68,233.62,13.20261079]
[1732677121646,3.19543682,233.67,233.62,13.20261079]
[1732677121861,3.19543682,233.68,233.62,13.20261079]
[1732677122062,3.19501608,233.67,233.64,13.20261079]
[1732677122376,20.0,233.68,233.63,13.20261079]
[1732677122541,3.19475273,233.67,233.63,13.20261079]
[1732677122743,3.19475273,233.67,233.61,13.20261079]
[1732677122960,3.19475273,233.67,233.56,4.2815]
[1732677122961,20.0,233.64,233.59,13.20261079]
[1732677123157,3.19492275,233.63,233.59,13.20261079]
[1732677123352,20.0,233.64,233.59,13.20261079]
[1732677128049,20.0,233.64,233.61,13.20261079]
[1732677128247,15.9814,233.72,233.63,13.20261079]
[1732677128248,0.64107671,233.71,233.63,13.20261079]
[1732677128477,3.18902073,233.7,233.64,13.20261079]
[1732677128980,3.18899714,233.69,233.64,13.20261079]
[1732677129472,20.0,233.68,233.64,13.20261079]
[1732677129649,3.18899714,233.67,233.64,13.20261079]
[1732677130150,20.0,233.68,233.63,13.20261079]
[1732677132351,20.0,233.69,233.65,13.20261079]
[1732677132558,3.18864368,233.68,233.65,13.20261079]
[1732677134276,20.0,233.67,233.62,13.20261079]
[1732677134576,20.0,233.67,233.61,13.20261079]
[1732677137071,20.0,233.67,233.62,13.20261079]
[1732677137271,20.0,233.67,233.63,13.20261079]
[1732677137471,20.0,233.68,233.65,13.20261079]
[1732677137789,3.19159278,233.67,233.66,13.20261079]
[1732677137989,29.57201079,233.79,233.66,13.20261079]
[1732677138289,8.29678185,233.78,233.73,13.20261079]
[1732677138578,8.29678185,233.78,233.62,72.5]
[1732677138579,16.39368073,233.77,233.62,72.5]
[1732677138788,3.19106994,233.77,233.71,13.20261079]
[1732677139087,8.29712093,233.77,233.72,13.20261079]
[1732677139293,8.29718641,233.78,233.72,13.20261079]
[1732677139455,16.3694,233.79,233.72,13.20261079]
[1732677139658,3.19161403,233.78,233.72,13.20261079]